bitfinex/quotes_SOLUSD_20230105
["timestamp","ask_amount","ask_price","bid_price","bid_amount"]
[1672879344995,21.7811836,13.312,13.308,84.1732601]
[1672879348905,78.1611836,13.312,13.308,84.1732601]
[1672879349112,56.37,13.313,13.308,84.1732601]
[1672879349329,21.7811836,13.312,13.308,84.1732601]
[1672879350680,20.0,13.314,13.308,84.1732601]
[1672879351512,20.0,13.315,13.308,84.1732601]
[1672879351937,21.7811836,13.313,13.308,84.1732601]
[1672879356143,20.0,13.315,13.308,84.1732601]
[1672879356354,76.36,13.316,13.308,84.1732601]
[1672879356989,98.1411836,13.316,13.308,84.1732601]
[1672879357184,41.7811836,13.316,13.308,84.1732601]
[1672879357400,56.36,13.315,13.308,84.1732601]
[1672879357625,40.0,13.314,13.308,84.1732601]
[1672879357838,41.7811836,13.314,13.308,84.1732601]
[1672879358025,21.7811836,13.313,13.308,84.1732601]
[1672879358980,20.0,13.312,13.308,84.1732601]
[1672879359403,21.7811836,13.311,13.308,84.1732601]
[1672879368770,56.38,13.31,13.308,84.1732601]
[1672879369192,21.7811836,13.309,13.308,84.1732601]
[1672879373499,21.7811836,13.309,13.3,175.1887336]
[1672879373500,30.3338399,13.308,13.3,66.1638336]
[1672879373722,20.0,13.306,13.3,66.1638336]
[1672879373938,56.41,13.305,13.304,5.2e-06]
[1672879374153,148.20085744,13.305,13.304,5.2e-06]
[1672879374555,203.69945173,13.305,13.304,5.2e-06]
[1672879375416,248.79556167,13.305,13.304,5.2e-06]
[1672879378549,192.38556167,13.305,13.304,5.2e-06]
[1672879378979,147.28945173,13.305,13.304,5.2e-06]
[1672879380021,255.31978999,13.305,13.304,5.2e-06]
[1672879380437,198.90978999,13.305,13.304,5.2e-06]
[1672879381073,255.31978999,13.305,13.304,5.2e-06]
[1672879387167,20.0,13.304,13.3,66.1638336]
[1672879387382,56.41,13.303,13.3,66.1638336]
[1672879387596,20.0,13.301,13.3,66.1638336]
[1672879387933,96.42,13.301,13.3,66.1638336]
[1672879388113,238.20103305,13.301,13.3,66.1638336]
[1672879388337,104.13367103,13.299,13.282,110.4388]
[1672879388659,149.26503415,13.298,13.282,110.4388]
[1672879388873,20.0,13.297,13.282,110.4388]
[1672879389081,20.0,13.295,13.282,110.4388]
[1672879389284,20.0,13.294,13.282,110.4388]
[1672879389491,87.95570081,13.294,13.282,110.4388]
[1672879389693,21.7811836,13.293,13.282,110.4388]
[1672879389900,20.0,13.292,13.282,110.4388]
[1672879390115,135.12051611,13.292,13.282,110.4388]
[1672879390329,136.90169971,13.291,13.282,110.4388]
[1672879390764,68.9459989,13.29,13.282,110.4388]
[1672879392355,21.7811836,13.289,13.282,110.4388]
[1672879393517,46.17451721,13.291,13.282,110.4388]
[1672879393712,20.0,13.294,13.282,110.4388]
[1672879393939,46.17451721,13.295,13.282,110.4388]
[1672879394125,20.0,13.294,13.282,110.4388]
[1672879394531,66.17451721,13.294,13.282,110.4388]
[1672879394972,41.7811836,13.293,13.282,110.4388]
[1672879395271,67.95570081,13.292,13.282,110.4388]
[1672879395691,21.7811836,13.291,13.282,110.4388]
[1672879400528,67.95570081,13.291,13.282,110.4388]
[1672879400966,20.0,13.289,13.282,110.4388]
[1672879401389,21.7811836,13.288,13.282,60.4388]
[1672879401571,20.0,13.29,13.282,60.4388]
[1672879401996,21.7811836,13.289,13.282,60.4388]
[1672879402426,67.95570081,13.289,13.282,60.4388]
[1672879402838,20.0,13.287,13.282,60.4388]
[1672879403165,21.7811836,13.286,13.282,60.4388]
[1672879403382,21.7811836,13.286,13.275,56.53]
[1672879403790,21.7811836,13.286,13.271,56.55]
[1672879404019,20.0,13.285,13.271,56.55]
[1672879404432,21.7811836,13.284,13.271,56.55]
[1672879404742,21.7811836,13.284,13.279,117.4597]
[1672879404960,20.0,13.283,13.279,117.4597]
[1672879405359,21.7811836,13.282,13.279,117.4597]
[1672879405571,21.7811836,13.282,13.27,30.116016]
[1672879405787,46.17451721,13.284,13.27,30.116016]
[1672879405995,67.95570081,13.284,13.27,30.116016]
[1672879406199,46.17451721,13.284,13.27,30.116016]
[1672879406415,67.95570081,13.284,13.27,30.116016]
[1672879406632,67.95570081,13.284,13.273,118.0752]
[1672879407573,124.44570081,13.284,13.273,118.0752]
[1672879409893,124.44570081,13.284,13.277,4.07244464]
[1672879410088,46.17451721,13.284,13.277,4.07244464]
[1672879410533,20.0,13.285,13.278,20.0]
[1672879410837,104.13367103,13.299,13.278,20.0]
[1672879410838,21.7811836,13.291,13.278,20.0]
[1672879411033,21.7811836,13.291,13.28,20.0]
[1672879412118,56.44,13.297,13.28,20.0]
[1672879412333,20.0,13.295,13.28,20.0]
[1672879412537,76.45,13.295,13.28,20.0]
[1672879412748,41.7811836,13.294,13.28,20.0]
[1672879413063,20.0,13.294,13.28,20.0]
[1672879413260,20.0,13.294,13.279,165.6482]
[1672879413261,21.7811836,13.293,13.279,165.6482]
[1672879413484,78.2411836,13.293,13.279,109.1282]
[1672879413681,21.7811836,13.293,13.279,109.1282]
[1672879413916,21.7811836,13.292,13.28,56.51]
[1672879414129,20.0,13.294,13.281,20.0]
[1672879414315,20.0,13.296,13.281,20.0]
[1672879414527,21.7811836,13.293,13.281,20.0]
[1672879414738,104.13367103,13.299,13.283,20.0]
[1672879415047,104.13367103,13.299,13.284,76.49]
[1672879415273,104.13367103,13.299,13.285,20.0]
[1672879415474,104.13367103,13.299,13.287,20.0]
[1672879415683,104.13367103,13.299,13.288,56.48]
[1672879416439,104.13367103,13.299,13.287,76.48]
[1672879416840,104.13367103,13.299,13.287,56.48]
[1672879416841,125.91485463,13.299,13.287,56.48]
[1672879417042,125.91485463,13.299,13.286,167.4482]
[1672879418313,125.91485463,13.299,13.286,110.9582]
[1672879419468,104.13367103,13.299,13.287,20.0]
[1672879420212,104.13367103,13.299,13.287,76.48]
[1672879422108,125.91485463,13.299,13.287,76.48]
[1672879422320,125.91485463,13.299,13.287,56.48]
[1672879422531,125.91485463,13.299,13.286,110.9582]
[1672879422743,20.0,13.297,13.286,110.9582]
[1672879423166,21.7811836,13.296,13.286,110.9582]
[1672879423588,56.43,13.298,13.286,110.9582]
[1672879424012,78.2111836,13.298,13.286,110.9582]
[1672879424533,104.13367103,13.299,13.286,110.9582]
[1672879424848,104.13367103,13.299,13.287,76.48]
[1672879425667,125.91485463,13.299,13.287,76.48]
[1672879425874,125.91485463,13.299,13.287,20.0]
[1672879426638,104.13367103,13.299,13.287,20.0]
[1672879427032,125.91485463,13.299,13.287,20.0]
[1672879428417,104.13367103,13.299,13.287,20.0]
[1672879429037,125.91485463,13.299,13.287,20.0]
[1672879429670,56.43,13.298,13.287,20.0]
[1672879430111,125.91485463,13.299,13.287,20.0]
[1672879430947,56.43,13.298,13.287,20.0]
[1672879431367,56.43,13.298,13.286,110.9582]
[1672879431769,78.2111836,13.298,13.286,110.9582]
[1672879436207,56.43,13.298,13.287,20.0]
[1672879436410,104.13367103,13.299,13.287,20.0]
[1672879438391,104.13367103,13.299,13.286,110.9582]
[1672879439256,76.43,13.298,13.286,110.9582]
[1672879439460,142.41449036,13.298,13.286,110.9582]
[1672879439678,21.7811836,13.297,13.286,110.9582]
[1672879440015,56.44,13.296,13.286,110.9582]
[1672879440405,56.43,13.298,13.286,110.9582]
[1672879440617,104.13367103,13.299,13.286,110.9582]
[1672879441043,104.13367103,13.299,13.288,20.0]
[1672879444210,104.13367103,13.299,13.287,20.0]
[1672879445037,104.13367103,13.299,13.286,110.9582]
[1672879445343,125.91485463,13.299,13.286,110.9582]
[1672879445564,56.43,13.298,13.286,110.9582]
[1672879445980,78.2111836,13.298,13.286,110.9582]
[1672879447132,56.43,13.298,13.286,110.9582]
[1672879447556,160.56367103,13.299,13.286,110.9582]
[1672879447982,182.34485463,13.299,13.286,110.9582]
[1672879448620,20.0,13.298,13.286,110.9582]
[1672879448934,20.0,13.296,13.286,110.9582]
[1672879449135,78.2211836,13.297,13.286,110.9582]
[1672879449464,56.44,13.297,13.286,110.9582]
[1672879449685,21.7811836,13.299,13.286,110.9582]
[1672879449897,21.7811836,13.296,13.28,56.51]
[1672879450079,21.7811836,13.296,13.28,116.9581]
[1672879450080,96.45,13.295,13.28,116.9581]
[1672879450301,20.0,13.294,13.28,116.9581]
[1672879450502,20.0,13.292,13.28,116.9581]
[1672879450728,56.46,13.291,13.28,116.9581]
[1672879450934,78.2411836,13.291,13.28,116.9581]
[1672879451251,56.46,13.291,13.28,116.9581]
[1672879451483,56.46,13.293,13.28,116.9581]
[1672879452703,56.45,13.294,13.28,116.9581]
[1672879453552,41.7811836,13.293,13.28,116.9581]
[1672879453769,56.46,13.292,13.28,116.9581]
[1672879453966,78.2411836,13.292,13.28,116.9581]
[1672879459226,21.7811836,13.292,13.28,116.9581]
[1672879459538,56.46,13.291,13.28,116.9581]
[1672879460921,56.46,13.291,13.281,20.0]
[1672879461130,78.2311836,13.294,13.281,20.0]
[1672879461667,21.7811836,13.293,13.281,20.0]
[1672879461879,21.7811836,13.293,13.28,116.9581]
[1672879461880,56.46,13.292,13.28,116.9581]
[1672879462494,20.0,13.293,13.28,116.9581]
[1672879462707,56.46,13.292,13.28,116.9581]
[1672879463445,56.45,13.294,13.281,20.0]
[1672879463876,56.45,13.294,13.283,20.0]
[1672879464493,56.45,13.294,13.283,34.97061141]
[1672879465029,56.45,13.294,13.283,14.97061141]
[1672879465246,56.45,13.294,13.281,20.0]
[1672879465431,56.45,13.294,13.281,34.97061141]
[1672879465642,56.45,13.294,13.281,133.23761787]
[1672879466705,78.9133,13.307,13.282,76.5]
[1672879466909,20.0,13.305,13.283,20.0]
[1672879467121,20.0,13.304,13.285,20.0]
[1672879467330,20.0,13.304,13.286,285.0689]
[1672879467331,56.41,13.303,13.286,285.0689]
[1672879467540,56.41,13.303,13.287,20.0]
[1672879467753,56.41,13.303,13.288,56.48]
[1672879467961,56.41,13.303,13.289,20.0]
[1672879468387,56.41,13.303,13.288,56.48]
[1672879468594,20.0,13.302,13.288,56.48]
[1672879469008,56.41,13.303,13.288,56.48]
[1672879469440,20.0,13.302,13.287,56.48]
[1672879469651,20.0,13.3,13.288,20.0]
[1672879470073,56.42,13.301,13.288,20.0]
[1672879471124,56.42,13.302,13.289,14.97061141]
[1672879471326,56.41,13.303,13.289,14.97061141]
[1672879471536,56.41,13.303,13.289,71.44061141]
[1672879471733,56.41,13.303,13.288,76.48]
[1672879472160,78.1911836,13.303,13.288,76.48]
[1672879472700,78.1911836,13.303,13.288,20.0]
[1672879474383,56.41,13.303,13.288,20.0]
[1672879474792,21.7811836,13.302,13.286,228.5789]
[1672879475002,76.42,13.301,13.286,228.5789]
[1672879475533,98.2011836,13.301,13.286,228.5789]
[1672879475749,78.2011836,13.301,13.287,20.0]
[1672879479953,56.42,13.301,13.286,228.5789]
[1672879480159,20.0,13.3,13.286,243.54951141]
[1672879480367,56.43,13.299,13.286,243.54951141]
[1672879480995,20.0,13.301,13.286,243.54951141]
[1672879481205,56.43,13.3,13.286,228.5789]
[1672879483643,20.0,13.299,13.286,228.5789]
[1672879483831,20.0,13.297,13.286,228.5789]
[1672879484043,56.44,13.296,13.286,228.5789]
[1672879484785,56.43,13.298,13.286,228.5789]
[1672879485531,20.0,13.298,13.286,228.5789]
[1672879485743,56.44,13.297,13.286,228.5789]
[1672879486460,20.0,13.298,13.286,228.5789]
[1672879486670,56.44,13.297,13.286,228.5789]
[1672879487215,20.0,13.298,13.286,228.5789]
[1672879487408,56.44,13.297,13.286,228.5789]
[1672879488267,20.0,13.298,13.286,228.5789]
[1672879488576,56.44,13.297,13.286,228.5789]
[1672879488998,20.0,13.298,13.286,228.5789]
[1672879489315,56.44,13.297,13.286,228.5789]
[1672879489530,117.1713,13.3,13.286,228.5789]
[1672879489719,117.1713,13.3,13.287,91.45061141]
[1672879489927,117.1713,13.3,13.288,20.0]
[1672879490150,117.1713,13.3,13.289,56.47]
[1672879490984,117.1713,13.3,13.29,20.0]
[1672879491194,117.1713,13.3,13.29,34.97061141]
[1672879491409,56.41,13.303,13.29,34.97061141]
[1672879491623,20.0,13.304,13.291,14.97061141]
[1672879491834,20.0,13.304,13.29,20.0]
[1672879492155,56.41,13.303,13.29,20.0]
[1672879492368,56.41,13.304,13.291,56.46]
[1672879492573,76.4,13.305,13.292,20.0]
[1672879492887,76.4,13.305,13.293,14.97061141]
[1672879493098,20.0,13.305,13.293,14.97061141]
[1672879493307,56.41,13.304,13.292,20.0]
[1672879493709,20.0,13.305,13.292,34.97061141]
[1672879493923,56.41,13.304,13.292,34.97061141]
[1672879494151,56.41,13.304,13.291,56.46]
[1672879495103,56.41,13.304,13.29,34.97061141]
[1672879495319,20.0,13.305,13.292,14.97061141]
[1672879495514,20.0,13.305,13.292,34.97061141]
[1672879495727,20.0,13.305,13.292,20.0]
[1672879496150,56.41,13.304,13.292,20.0]
[1672879496366,20.0,13.305,13.292,20.0]
[1672879497294,20.0,13.305,13.291,56.46]
[1672879497513,56.41,13.304,13.289,56.47]
[1672879498662,21.7811836,13.303,13.289,56.47]
[1672879498872,20.0,13.302,13.289,56.47]
[1672879499090,21.7811836,13.303,13.289,56.47]
[1672879499406,21.7811836,13.302,13.289,56.47]
[1672879501204,21.7811836,13.302,13.288,76.48]
[1672879502354,56.41,13.304,13.288,76.48]
[1672879502676,56.41,13.304,13.289,14.97061141]
[1672879502985,20.0,13.305,13.291,20.0]
[1672879503306,20.0,13.305,13.292,56.46]
[1672879503512,20.0,13.305,13.293,20.0]
[1672879508344,56.41,13.304,13.293,20.0]
[1672879508547,20.0,13.305,13.293,34.97061141]
[1672879508762,20.0,13.305,13.293,90.89536492]
[1672879509606,20.0,13.305,13.293,75.92475351]
[1672879511614,20.0,13.305,13.293,55.92475351]
[1672879513617,20.0,13.305,13.291,76.46]
[1672879516248,20.0,13.305,13.292,14.97061141]
[1672879516459,56.41,13.304,13.291,74.78146417]
[1672879516857,76.41,13.305,13.291,74.78146417]
[1672879517293,98.1911836,13.305,13.291,74.78146417]
[1672879517598,41.7811836,13.305,13.291,20.0]
[1672879518013,41.7811836,13.305,13.293,20.0]
[1672879519079,20.0,13.305,13.293,74.78146417]
[1672879520974,20.0,13.305,13.293,54.78146417]
[1672879521390,56.41,13.304,13.293,54.78146417]
[1672879521910,20.0,13.305,13.293,54.78146417]
[1672879524223,20.0,13.306,13.293,54.78146417]
[1672879524434,20.0,13.306,13.293,69.75207558]
[1672879525477,20.0,13.306,13.293,54.78146417]
[1672879528106,56.41,13.305,13.294,20.0]
[1672879528312,37.95224937,13.309,13.294,35.57139598]
[1672879528574,37.95224937,13.316,13.296,20.0]
[1672879528734,37.95224937,13.316,13.297,56.44]
[1672879528949,37.95224937,13.316,13.298,20.0]
[1672879529161,56.36,13.315,13.3,20.0]
[1672879529382,56.36,13.315,13.3,131.1412]
[1672879529881,56.36,13.315,13.3,247.6843]
[1672879530099,94.31224937,13.315,13.3,247.6843]
[1672879530305,56.36,13.315,13.3,247.6843]
[1672879530538,56.36,13.315,13.302,20.0]
[1672879530731,56.36,13.316,13.302,20.0]
[1672879532524,20.0,13.315,13.302,20.0]
[1672879532718,115.2709,13.317,13.303,56.41]
[1672879532719,37.95224937,13.317,13.303,56.41]
[1672879532934,310.16920193,13.328,13.303,197.99552652]
[1672879532935,37.95224937,13.326,13.303,197.99552652]
[1672879533263,37.95224937,13.326,13.305,20.0]
[1672879533470,94.27224937,13.325,13.306,165.503]
[1672879533677,56.32,13.325,13.307,20.0]
[1672879533886,56.32,13.325,13.308,56.39]
[1672879534103,37.95224937,13.328,13.309,20.0]
[1672879534314,20.0,13.326,13.311,20.0]
[1672879534508,20.0,13.326,13.312,56.38]
[1672879534715,56.32,13.325,13.308,56.39]
[1672879534942,122.13507969,13.301,13.277,4.07244464]
[1672879535151,56.43,13.3,13.277,4.07244464]
[1672879535376,78.2111836,13.3,13.277,4.07244464]
[1672879535569,20.0,13.298,13.277,4.07244464]
[1672879535780,56.44,13.297,13.277,4.07244464]
[1672879535986,20.0,13.296,13.277,4.07244464]
[1672879536200,76.45,13.295,13.277,4.07244464]
[1672879536431,20.0,13.294,13.277,4.07244464]
[1672879536646,20.0,13.292,13.277,4.07244464]
[1672879536837,20.0,13.29,13.277,4.07244464]
[1672879537050,56.47,13.289,13.277,4.07244464]
[1672879537258,176.40065434,13.289,13.277,4.07244464]
[1672879537476,20.0,13.287,13.277,4.07244464]
[1672879537685,20.0,13.285,13.277,4.07244464]
[1672879537889,76.49,13.284,13.277,4.07244464]
[1672879538099,20.0,13.283,13.277,4.07244464]
[1672879538306,56.5,13.282,13.277,4.07244464]
[1672879538514,20.0,13.281,13.277,4.07244464]
[1672879538725,20.0,13.279,13.277,4.07244464]
[1672879539261,56.51,13.28,13.277,4.07244464]
[1672879539879,135.88618454,13.279,13.277,4.07244464]
[1672879540089,56.52,13.278,13.277,4.07244464]
[1672879540312,56.52,13.278,13.263,113.8282]
[1672879540313,20.0,13.277,13.262,56.59]
[1672879540514,20.0,13.275,13.261,30.132996]
[1672879540723,96.53,13.275,13.261,30.132996]
[1672879541055,56.52,13.278,13.261,86.722996]
[1672879541362,56.52,13.278,13.262,20.0]
[1672879541582,56.52,13.278,13.263,56.58]
[1672879541777,56.52,13.278,13.264,20.0]
[1672879541993,41.7811836,13.281,13.266,20.0]
[1672879542197,56.51,13.28,13.266,20.0]
[1672879542410,56.51,13.28,13.274,81.0146974]
[1672879543972,78.2911836,13.28,13.274,81.0146974]
[1672879544186,21.7811836,13.28,13.274,81.0146974]
[1672879547453,20.0,13.279,13.274,81.0146974]
[1672879547780,76.52,13.279,13.274,81.0146974]
[1672879547971,98.3011836,13.279,13.274,81.0146974]
[1672879548396,20.0,13.277,13.274,28.6578974]
[1672879548612,20.0,13.275,13.274,28.6578974]
[1672879548831,76.53,13.275,13.274,9.74e-05]
[1672879549151,118.3111836,13.275,13.274,9.74e-05]
[1672879549559,96.53,13.275,13.274,9.74e-05]
[1672879550094,40.0,13.275,13.274,9.74e-05]
[1672879550295,20.0,13.28,13.274,9.74e-05]
[1672879550615,20.0,13.292,13.274,9.74e-05]
[1672879550816,56.49,13.286,13.274,9.74e-05]
[1672879551022,20.0,13.292,13.274,9.74e-05]
[1672879551450,41.7811836,13.29,13.274,9.74e-05]
[1672879551769,56.49,13.286,13.274,9.74e-05]
[1672879552803,20.0,13.285,13.274,9.74e-05]
[1672879553014,56.49,13.284,13.274,9.74e-05]
[1672879553237,20.0,13.283,13.274,9.74e-05]
[1672879553450,20.0,13.281,13.274,9.74e-05]
[1672879555345,56.5,13.282,13.274,9.74e-05]
[1672879556403,20.0,13.28,13.274,9.74e-05]
[1672879556601,76.52,13.279,13.274,9.74e-05]
[1672879556807,20.0,13.278,13.274,9.74e-05]
[1672879557019,56.52,13.277,13.274,9.74e-05]
[1672879557215,40.0,13.276,13.274,9.74e-05]
[1672879557436,56.53,13.275,13.274,9.74e-05]
[1672879557650,76.53,13.275,13.274,9.74e-05]
[1672879558911,150.74061156,13.275,13.274,9.74e-05]
[1672879560165,98.3111836,13.275,13.274,9.74e-05]
[1672879563421,76.53,13.275,13.274,9.74e-05]
[1672879563744,56.51,13.28,13.274,9.74e-05]
[1672879563954,56.5,13.283,13.274,9.74e-05]
[1672879564594,78.2711836,13.284,13.274,9.74e-05]
[1672879564808,56.49,13.284,13.274,9.74e-05]
[1672879565011,56.49,13.285,13.274,9.74e-05]
[1672879565543,78.2711836,13.285,13.274,9.74e-05]
[1672879565952,20.0,13.284,13.274,9.74e-05]
[1672879566173,20.0,13.282,13.274,9.74e-05]
[1672879566905,56.51,13.281,13.274,9.74e-05]
[1672879567857,41.7811836,13.28,13.274,9.74e-05]
[1672879568067,20.0,13.278,13.274,9.74e-05]
[1672879568277,76.52,13.277,13.274,9.74e-05]
[1672879568491,20.0,13.276,13.274,9.74e-05]
[1672879568682,76.53,13.275,13.274,9.74e-05]
[1672879569102,98.3111836,13.275,13.274,9.74e-05]
[1672879570398,76.53,13.275,13.274,9.74e-05]
[1672879574277,98.3111836,13.275,13.274,9.74e-05]
[1672879574468,150.74061156,13.275,13.274,9.74e-05]
[1672879574678,150.74061156,13.275,13.259,84.1732601]
[1672879574679,20.0,13.274,13.259,84.1732601]
[1672879574891,56.54,13.273,13.259,84.1732601]
[1672879575220,20.0,13.271,13.259,84.1732601]
[1672879575430,76.55,13.27,13.259,84.1732601]
[1672879575750,131.79200658,13.27,13.259,84.1732601]
[1672879576061,20.0,13.268,13.259,84.1732601]
[1672879576263,76.57,13.267,13.259,84.1732601]
[1672879576472,98.3511836,13.267,13.259,84.1732601]
[1672879576796,20.0,13.265,13.259,84.1732601]
[1672879577009,76.58,13.264,13.259,84.1732601]
[1672879577221,98.3611836,13.264,13.259,84.1732601]
[1672879577536,21.7811836,13.263,13.259,84.1732601]
[1672879577753,56.59,13.262,13.259,84.1732601]
[1672879578147,78.3711836,13.262,13.259,84.1732601]
[1672879578357,21.7811836,13.262,13.259,84.1732601]
[1672879578578,21.7811836,13.262,13.259,5.4733601]
[1672879578579,56.59,13.261,13.259,5.4733601]
[1672879579417,78.3711836,13.261,13.259,5.4733601]
[1672879579619,21.7811836,13.261,13.259,5.4733601]
[1672879580150,56.58,13.263,13.259,5.4733601]
[1672879580588,20.0,13.264,13.259,5.4733601]
[1672879580779,20.0,13.265,13.259,5.4733601]
[1672879580991,78.3611836,13.264,13.259,5.4733601]
[1672879581212,20.0,13.263,13.259,5.4733601]
[1672879581428,78.3611836,13.264,13.259,5.4733601]
[1672879582053,20.0,13.265,13.259,5.4733601]
[1672879582269,20.0,13.266,13.259,5.4733601]
[1672879582484,20.0,13.268,13.259,5.4733601]
[1672879582689,76.57,13.267,13.259,5.4733601]
[1672879582903,20.0,13.266,13.259,5.4733601]
[1672879583107,41.7811836,13.266,13.259,5.4733601]
[1672879583328,21.7811836,13.265,13.259,5.4733601]
[1672879583741,20.0,13.264,13.259,5.4733601]
[1672879584574,20.0,13.266,13.259,5.4733601]
[1672879585647,20.0,13.265,13.259,5.4733601]
[1672879585861,76.58,13.265,13.259,5.4733601]
[1672879586067,20.0,13.264,13.259,5.4733601]
[1672879587956,41.7811836,13.264,13.259,5.4733601]
[1672879589109,76.58,13.263,13.259,5.4733601]
[1672879589523,21.7811836,13.262,13.259,5.4733601]
[1672879590363,56.58,13.263,13.259,5.4733601]
[1672879590581,98.3611836,13.264,13.259,5.4733601]
[1672879591649,41.7811836,13.264,13.259,5.4733601]
[1672879591855,20.0,13.264,13.259,5.4733601]
[1672879592048,20.0,13.266,13.259,5.4733601]
[1672879592374,56.58,13.265,13.259,5.4733601]
[1672879592595,20.0,13.264,13.259,5.4733601]
[1672879593214,98.3611836,13.264,13.259,5.4733601]
[1672879593424,21.7811836,13.264,13.259,5.4733601]
[1672879594799,56.58,13.265,13.259,5.4733601]
[1672879594997,20.0,13.264,13.259,5.4733601]
[1672879595416,56.58,13.263,13.259,5.4733601]
[1672879595935,20.0,13.264,13.259,5.4733601]
[1672879596787,20.0,13.263,13.259,5.4733601]
[1672879597004,56.59,13.262,13.259,5.4733601]
[1672879597195,20.0,13.261,13.259,5.4733601]
[1672879598267,56.59,13.262,13.259,5.4733601]
[1672879598788,76.58,13.263,13.259,5.4733601]
[1672879599860,98.3611836,13.263,13.259,5.4733601]
[1672879600583,98.3611836,13.263,13.25,66.1638336]
[1672879600584,20.0,13.261,13.25,66.1638336]
[1672879600771,76.6,13.26,13.25,66.1638336]
[1672879600980,20.0,13.259,13.25,66.1638336]
[1672879601189,56.61,13.258,13.25,66.1638336]
[1672879601400,20.0,13.259,13.25,66.1638336]
[1672879601831,78.3811836,13.26,13.254,265.0360493]
[1672879602239,77.8811836,13.26,13.254,265.0360493]
[1672879602457,20.0,13.259,13.254,265.0360493]
[1672879602677,56.61,13.258,13.254,265.0360493]
[1672879602869,20.0,13.257,13.254,265.0360493]
[1672879603085,56.61,13.256,13.254,265.0360493]
[1672879603295,20.0,13.255,13.254,265.0360493]
[1672879603708,41.7811836,13.255,13.254,265.0360493]
[1672879604242,98.4011836,13.255,13.254,265.0360493]
[1672879604455,122.62229051,13.252,13.25,0.0038336]
[1672879604667,0.06,13.247,13.23,34.2329425]
[1672879604879,0.06,13.247,13.224,133.0502581]
[1672879604880,38.20026615,13.242,13.224,133.0502581]
[1672879605090,38.20026615,13.242,13.21,1.25175711]
[1672879605091,102.1191709,13.218,13.21,1.25175711]
[1672879605295,56.69,13.239,13.21,1.25175711]
[1672879605516,117.34945143,13.217,13.215,52.97010972]
[1672879605720,21.7811836,13.222,13.215,52.97010972]
[1672879606048,56.7,13.237,13.216,20.0]
[1672879606353,56.7,13.237,13.213,20.0]
[1672879606354,20.0,13.235,13.213,20.0]
[1672879606547,76.71,13.234,13.216,52.96610169]
[1672879606761,20.0,13.233,13.216,52.96610169]
[1672879606986,56.72,13.232,13.216,196.20183329]
[1672879607194,20.0,13.234,13.217,56.78]
[1672879607407,40.0,13.241,13.218,20.0]
[1672879607620,56.68,13.24,13.219,56.77]
[1672879607827,20.0,13.238,13.22,20.0]
[1672879608147,56.69,13.238,13.222,20.0]
[1672879608341,20.0,13.237,13.222,20.0]
[1672879608546,56.67,13.244,13.223,76.76]
[1672879608766,40.6920507,13.254,13.223,76.76]
[1672879608767,20.0,13.251,13.223,76.76]
[1672879608967,21.7811836,13.246,13.224,20.0]
[1672879609179,21.7811836,13.246,13.225,56.75]
[1672879609391,56.66,13.245,13.226,20.0]
[1672879609598,56.66,13.245,13.227,56.74]
[1672879609913,20.0,13.244,13.227,56.74]
[1672879610144,20.06,13.249,13.227,56.74]
[1672879610145,56.65,13.248,13.227,56.74]
[1672879610451,78.4311836,13.248,13.228,20.0]
[1672879610643,78.4311836,13.248,13.229,56.73]
[1672879610853,20.06,13.247,13.23,20.0]
[1672879611081,20.06,13.247,13.231,56.72]
[1672879611707,20.06,13.247,13.226,163.2357316]
[1672879611708,20.0,13.246,13.226,143.2357316]